[Event "XX Sants Open 2018"]
[Site "Cotxeres de Sants"]
[Date "2018.08.25"]
[Round "9"]
[White "Santos Ramos, Carlos"]
[Black "Vargas Drechsler, Carlos"]
[Result "0-1"]
[ECO "A04"]
[WhiteElo "1825"]
[BlackElo "1902"]
[Annotator "NA RC"]
[PlyCount "202"]
[EventDate "2018.08.17"]
[EventType "swiss"]
[EventCountry "ESP"]
[SourceTitle "playchess.com"]
[Source "ChessBase"]
[SourceQuality "1"]
[TimeControl "40/5400+30:1800+30"]

1. Nf3 {[%emt 0:00:00]} c5 {[%emt 0:02:09]} 2. c4 {[%emt 0:00:00]} Nf6 {[%emt 0:00:25]} 3. g3 {[%emt 0:00:00]} g6 {[%emt 0:00:12]} 4. Bg2 {[%emt 0:00:06]} Bg7 {[%emt 0:00:17]} 5. O-O {[%emt 0:00:32]} O-O {[%emt 0:00:18]} 6. Nc3 {[%emt 0:00:14]} Nc6 {[%emt 0:00:29]} 7. e4 {[%emt 0:00:18]} d6 {[%emt 0:01:29]} 8. d3 {[%emt 0:00:09]} Rb8 {[%emt 0:06:54]} 9. h3 {[%emt 0:00:22]} a6 {[%emt 0:01:01]} 10. a4 {[%emt 0:00:20]} Nb4 {[%emt 0:01:34] A38: Symmetrical English vs ...g6: 4 Bg2 Bg7 5 Nf3 Nf6} (10... h6 11. Re1 Bd7 12. Be3 Qc8 13. Kh2 Kh7 14. Qd2 Be6 15. Rac1 {½-½ (15) Salvador,R (2447)-Sanchez,J (2491) Bratto 2009}) 11. Be3 {[%emt 0:00:18]} e5 $146 {[%emt 0:05:03]} ({Predecessor:} 11... b6 12. Qd2 e6 13. d4 Qe7 {½-½ (63) Muhtarov,L (2230)-Sebenik,M (2115) Bled 1997}) 12. Qd2 {[%emt 0:00:09]} Bd7 {[%emt 0:01:07]} 13. b3 {[%emt 0:01:12]} b5 {[%emt 0:02:25]} 14. axb5 {[%emt 0:02:06]} axb5 {[%emt 0:04:02]} 15. Na2 {[%emt 0:03:06]} Nc6 {[%emt 0:03:40]} 16. Rfb1 {[%emt 0:02:59]} b4 {[%emt 0:01:13]} 17. Bh6 {[%emt 0:00:13]} Re8 {[%emt 0:04:45]} 18. Bxg7 {[%emt 0:00:08]} Kxg7 {[%emt 0:00:09]} 19. Nc1 {[%emt 0:01:44]} Qc8 {[%emt 0:02:15]} 20. Kh2 {[%emt 0:00:13]} Rh8 {[%emt 0:07:04]} 21. Ne2 {[%emt 0:00:10]} h6 {[%emt 0:00:53]} 22. Nfg1 {[%emt 0:08:16]} g5 {[%emt 0:03:59]} 23. f4 {[%emt 0:03:08]} g4 {[%emt 0:00:57]} 24. h4 {[%emt 0:00:56]} Ra8 {[%emt 0:06:00]} 25. fxe5 {[%emt 0:00:47]} dxe5 {[%emt 0:01:11]} 26. Qe3 {[%emt 0:02:59]} Nd4 {[%emt 0:02:39]} 27. Nxd4 {[%emt 0:00:04]} cxd4 {[%emt 0:00:24]} 28. Qf2 {[%emt 0:01:34]} Qc6 {[%emt 0:06:40]} 29. Qd2 {[%emt 0:11:33]} Rhb8 {[%emt 0:03:47]} 30. Ne2 {[%emt 0:01:07]} Qc5 {[%emt 0:02:25]} 31. Ra2 {[%emt 0:11:17]} Rxa2 {[%emt 0:02:28]} 32. Qxa2 {[%emt 0:00:02]} Bc6 {[%emt 0:00:46]} 33. Qb2 {[%emt 0:02:38]} Ra8 {[%emt 0:01:33]} 34. Rf1 {[%emt 0:04:07]} Ra3 {[%emt 0:05:39]} 35. Nc1 {[%emt 0:00:46]} Qe7 {[%emt 0:06:33]} 36. Qf2 {[%emt 0:11:10]} Bd7 {[%emt 0:01:04]} 37. Rd1 {[%emt 0:01:41]} Be6 {[%emt 0:00:41]} 38. Rd2 {[%emt 0:00:22]} Ne8 {[%emt 0:05:28]} 39. Rb2 {[%emt 0:00:21]} Nc7 {[%emt 0:01:53]} 40. Qd2 {[%emt 0:00:00]} Qc5 {[%emt 0:00:00]} 41. Bf1 {[%emt 0:05:08]} Na6 {[%emt 0:06:16]} 42. Be2 {[%emt 0:01:08]} Qa5 {[%emt 0:03:54]} 43. h5 {[%emt 0:04:37]} Qd8 {[%emt 0:04:02]} 44. Na2 {[%emt 0:04:08]} Qf6 {[%emt 0:03:24]} 45. Bd1 {[%emt 0:02:41]} Qf1 {[%emt 0:02:03]} 46. Qe2 {[%emt 0:17:22]} Qh3+ {[%emt 0:00:29]} 47. Kg1 {[%emt 0:00:00]} Qxg3+ 48. Kf1 {[%emt 0:00:00]} Qh3+ {[%emt 0:02:07]} 49. Ke1 {[%emt 0:05:43]} Qxh5 50. Kd2 {[%emt 0:00:04]} Qg5+ {[%emt 0:02:04]} 51. Kc2 {[%emt 0:00:39]} h5 {[%emt 0:01:24]} 52. Kb1 {[%emt 0:00:24]} h4 {[%emt 0:01:35]} 53. Rd2 g3 {[%emt 0:02:14]} 54. Kb2 {[%emt 0:00:49]} h3 {[%emt 0:01:43]} 55. Nxb4 {[%emt 0:01:29]} g2 56. Kxa3 {[%emt 0:00:00]} Nxb4 {[%emt 0:02:11]} 57. Kxb4 {[%emt 0:03:57]} g1=Q {[%emt 0:04:19]} 58. Ra2 Bg4 {[%emt 0:00:09]} 59. Qxg4 {[%emt 0:02:31]} Q1xg4 {[%emt 0:00:08]} 60. Bxg4 {[%emt 0:00:01]} Qxg4 {[%emt 0:00:58]} 61. c5 {[%emt 0:01:04]} Qc8 {[%emt 0:01:06]} 62. Rc2 {[%emt 0:01:01]} Kg6 63. c6 {[%emt 0:00:01]} h2 {[%emt 0:02:16]} 64. Rxh2 {[%emt 0:00:00]} Kf6 {[%emt 0:00:37]} 65. Kc4 {[%emt 0:00:08]} Ke7 {[%emt 0:00:30]} 66. Kc5 {[%emt 0:00:30]} Qa6 67. b4 Qxd3 {[%emt 0:02:10]} 68. b5 {[%emt 0:04:02]} Qc3+ {[%emt 0:00:25]} 69. Kb6 {[%emt 0:00:05]} d3 {[%emt 0:00:42]} 70. Kb7 {[%emt 0:02:15]} Qb4 {[%emt 0:02:01]} 71. b6 {[%emt 0:00:38]} Qxe4 {[%emt 0:00:15]} 72. Kc7 {[%emt 0:00:48]} Qf4 {[%emt 0:00:29]} 73. Rb2 {[%emt 0:04:08]} e4+ {[%emt 0:01:26]} 74. Kb7 {[%emt 0:00:24]} Qe5 {[%emt 0:01:54]} (74... d2 $142 75. c7 d1=Q 76. c8=Q Qd5+ 77. Ka7 e3 78. Qb7+ Qxb7+ 79. Kxb7 Qe4+ 80. Ka7 e2 81. Rxe2 Qxe2 82. b7 Qe3+ 83. Ka6 Qe5 84. Kb6 f5 85. b8=Q Qxb8+ 86. Kc5 Qe5+ 87. Kb4 f4 88. Kb3 f3 89. Kb4 f2 90. Kb3 f1=Q 91. Ka4 Qc4+ 92. Ka3 Qec3#) 75. c7 {[%emt 0:03:41]} Qxb2 {[%emt 0:00:27]} 76. c8=Q {[%emt 0:00:08]} Qd4 {[%emt 0:00:39]} (76... d2 $142 77. Qc7+ Ke6 78. Qc8+ Ke5 79. Qc5+ Kf6 80. Qd6+ Kg5 81. Qg3+ Kf5 82. Qh3+ Kf4 83. Qf1+ Ke5) 77. Qc1 {[%emt 0:06:10]} d2 {[%emt 0:00:12]} 78. Qd1 {[%emt 0:01:42]} Kd8 {[%emt 0:01:20]} 79. Ka8 {[%emt 0:00:28]} e3 {[%emt 0:01:10]} 80. b7 {[%emt 0:00:13]} Qd5 {[%emt 0:00:10]} 81. Ka7 $2 {[%emt 0:02:18]} (81. Qa4 $17) 81... Qa5+ {[%emt 0:00:04]} 82. Kb8 {[%emt 0:00:02]} f5 {[%emt 0:00:44]} 83. Qc2 {[%emt 0:00:39]} Qe5+ {[%emt 0:00:47]} 84. Ka8 {[%emt 0:00:08]} Qa1+ {[%emt 0:00:08]} 85. Kb8 {[%emt 0:00:49]} d1=Q {[%emt 0:00:18]} 86. Qc7+ {[%emt 0:01:07]} Ke8 {[%emt 0:00:05]} 87. Qc6+ {[%emt 0:01:16]} Kf7 {[%emt 0:00:48]} 88. Qd7+ {[%emt 0:01:05]} Kg6 {[%emt 0:00:24]} 89. Qe8+ {[%emt 0:00:44]} Kg5 {[%emt 0:00:44]} 90. Qxe3+ {[%emt 0:00:14]} f4 {[%emt 0:00:30]} 91. Qc5+ {[%emt 0:00:28]} Kg4 {[%emt 0:00:23]} 92. Qc8+ {[%emt 0:00:37]} Kg3 {[%emt 0:00:17]} 93. Qg8+ {[%emt 0:00:40]} Qg4 {[%emt 0:00:12]} 94. Qd8 {[%emt 0:01:05]} Qe5+ {[%emt 0:00:36]} 95. Ka8 {[%emt 0:00:11]} Qf3 {[%emt 0:01:03]} 96. Qg8+ {[%emt 0:00:09]} Kf2 {[%emt 0:00:16]} 97. Qa2+ {[%emt 0:00:41]} Qee2 {[%emt 0:00:36]} 98. Qa5 {[%emt 0:00:42]} Qe8+ {[%emt 0:00:35]} 99. Ka7 {[%emt 0:00:08]} Qfe3+ {[%emt 0:00:34]} 100. Qb6 {[%emt 0:01:12]} Qxb6+ {[%emt 0:00:11]} 101. Kxb6 {[%emt 0:00:01]} Qb8 {[%emt 0:00:13]} 0-1

[Event "XX Sants Open 2018"]
[Site "Cotxeres de Sants"]
[Date "2018.08.25"]
[Round "9"]
[White "Vadillo, Torre Ismael"]
[Black "Buisan Arnau, Oriol"]
[Result "0-1"]
[ECO "A80"]
[WhiteElo "1567"]
[BlackElo "1599"]
[Annotator "NA RC"]
[PlyCount "78"]
[EventDate "2018.08.17"]
[EventType "swiss"]
[EventCountry "ESP"]
[SourceTitle "playchess.com"]
[Source "ChessBase"]
[SourceQuality "1"]
[TimeControl "40/5400+30:1800+30"]

1. d4 f5 2. Nf3 Nf6 3. c4 e6 4. g3 d5 5. Bg2 Be7 6. O-O O-O 7. c5 b6 8. cxb6 cxb6 9. Bf4 Nc6 10. Nc3 Bd6 11. e3 Ba6 12. Re1 Ne4 13. Nxe4 fxe4 14. Ng5 Qe7 15. Qh5 h6 16. Nh3 Rf5 17. Qg4 Kh7 18. Rec1 Rc8 19. Bxd6 Qxd6 20. Nf4 Ne7 21. Rxc8 Bxc8 22. Rc1 Bd7 23. Qe2 Rf8 24. Qa6 Qb8 25. Bh3 Rf6 26. Qa3 Nc6 27. Nxd5 exd5 28. Bxd7 Qc7 29. Bxc6 Rxc6 30. Rxc6 Qxc6 31. Qc3 Qa4 32. Qb3 Qxb3 33. axb3 Kg6 34. f3 exf3 35. Kf2 Kf5 36. Kxf3 g5 37. g4+ Ke6 38. e4 Kd6 39. e5+ Ke6 0-1

[Event "XX Sants Open 2018"]
[Site "Cotxeres de Sants"]
[Date "2018.08.25"]
[Round "9"]
[White "Garrido Sanchez, Daniel"]
[Black "Grasa Solanas, Oscar"]
[Result "1-0"]
[ECO "B01"]
[WhiteElo "1560"]
[BlackElo "1646"]
[Annotator "NA RC"]
[PlyCount "131"]
[EventDate "2018.08.17"]
[EventType "swiss"]
[EventCountry "ESP"]
[SourceTitle "playchess.com"]
[Source "ChessBase"]
[SourceQuality "1"]
[TimeControl "40/5400+30:1800+30"]

1. e4 d5 2. exd5 Qxd5 3. Nc3 Qa5 4. d4 Nf6 5. Nf3 Bf5 6. Bd3 Bxd3 7. Qxd3 e6 8. Qb5+ Qxb5 9. Nxb5 Na6 10. Bf4 Nd5 11. Bd2 c6 12. Nc3 O-O-O 13. Ne5 Re8 14. Nxf7 Rg8 15. a3 g6 16. O-O-O Rg7 17. Ne5 Bd6 18. Nxd5 Bxe5 19. dxe5 cxd5 20. Be3 Kb8 21. Kb1 Rc8 22. Rc1 Rf7 23. Rhf1 Rf5 24. f4 Rf7 25. Rfd1 Rc4 26. g3 Nc7 27. Rd4 Rxd4 28. Bxd4 b6 29. c4 dxc4 30. Rxc4 Kb7 31. Rc1 Rd7 32. Bc3 Nd5 33. Bd2 Rd8 34. Rc2 Rd7 35. Ka2 Rd8 36. Rc1 Rd7 37. Kb1 Rd8 38. Rf1 Rd7 39. h3 a5 40. g4 Ne7 41. Rf2 Rd3 42. Rh2 Rf3 43. h4 Rg3 44. g5 Rd3 45. Kc2 Rd7 46. h5 Nf5 47. hxg6 hxg6 48. Bc1 Kc6 49. Rh8 Rg7 50. Re8 Kd7 51. Rh8 Kc6 52. Kc3 Ne7 53. Rd8 Nd5+ 54. Kd4 Ne7 55. Rd6+ Kb5 56. Rxe6 Nf5+ 57. Ke4 Ng3+ 58. Kd5 Nf5 59. a4+ Ka6 60. Re8 Rc7 61. Rg8 Rxc1 62. Rf8 Rc5+ 63. Ke6 Rc6+ 64. Kd7 Nd4 65. Rc8 Re6 66. Rc4 1-0

[Event "XX Sants Open 2018"]
[Site "Cotxeres de Sants"]
[Date "2018.08.25"]
[Round "9"]
[White "Lujan Moreno, Royer Manuel"]
[Black "Cassi De La Viuda, Alex"]
[Result "1-0"]
[ECO "B20"]
[WhiteElo "1477"]
[BlackElo "1566"]
[Annotator "NA RC"]
[PlyCount "72"]
[EventDate "2018.08.17"]
[EventType "swiss"]
[EventCountry "ESP"]
[SourceTitle "playchess.com"]
[Source "ChessBase"]
[SourceQuality "1"]
[TimeControl "40/5400+30:1800+30"]

1. e4 {[%emt 0:10:42]} c5 {[%emt 0:02:52]} 2. c4 Nc6 {[%emt 0:01:04]} 3. Nc3 {[%emt 0:00:35]} d6 {[%emt 0:00:22]} 4. d3 {[%emt 0:00:18]} g6 {[%emt 0:03:47]} 5. Nf3 {[%emt 0:00:15]} Bg7 {[%emt 0:00:16]} 6. Be2 {[%emt 0:00:02]} Nf6 {[%emt 0:02:45]} 7. O-O {[%emt 0:00:04]} O-O {[%emt 0:02:32]} 8. a3 {[%emt 0:00:06]} Bg4 {[%emt 0:08:53]} 9. h3 {[%emt 0:00:02]} Bxf3 {[%emt 0:02:46]} 10. Bxf3 {[%emt 0:00:03]} Nd4 {[%emt 0:01:24]} 11. Nb5 {[%emt 0:00:10]} Nxb5 {[%emt 0:01:46]} 12. cxb5 {[%emt 0:00:05]} Qb6 {[%emt 0:04:42]} 13. a4 {[%emt 0:00:35]} Nd7 {[%emt 0:00:41]} 14. Qb3 {[%emt 0:02:17]} a6 {[%emt 0:03:02]} 15. Be3 {[%emt 0:00:09]} axb5 {[%emt 0:05:59]} 16. axb5 {[%emt 0:00:11]} Ne5 {[%emt 0:00:44]} 17. Be2 {[%emt 0:00:03]} Nd7 {[%emt 0:02:12]} 18. f4 {[%emt 0:00:34]} e6 {[%emt 0:07:42]} 19. f5 {[%emt 0:01:38]} exf5 {[%emt 0:06:50]} 20. exf5 {[%emt 0:00:35]} Rxa1 {[%emt 0:00:16]} 21. Rxa1 {[%emt 0:01:48]} Re8 {[%emt 0:00:07]} 22. Kf2 {[%emt 0:01:02]} Rxe3 {[%emt 0:16:10]} 23. Ra8+ {[%emt 0:02:56]} Nf8 {[%emt 0:02:28]} 24. Qc4 {[%emt 0:08:02]} Re5 {[%emt 0:02:13]} 25. fxg6 {[%emt 0:01:20]} hxg6 {[%emt 0:00:43]} 26. Bf3 {[%emt 0:00:31]} Rf5 {[%emt 0:02:23]} 27. g4 {[%emt 0:03:20]} d5 {[%emt 0:01:26]} 28. Qc1 {[%emt 0:02:42]} c4+ {[%emt 0:01:30]} 29. Kg2 {[%emt 0:00:04]} Re5 {[%emt 0:00:51]} 30. dxc4 {[%emt 0:00:38]} dxc4 {[%emt 0:00:27]} 31. Rb8 {[%emt 0:08:13]} Rxb5 {[%emt 0:04:12]} 32. Rxb7 {[%emt 0:11:05]} Rxb2+ {[%emt 0:01:18]} 33. Kh1 {[%emt 0:00:07]} Qf2 {[%emt 0:00:46]} 34. Rxb2 {[%emt 0:01:59]} Bxb2 {[%emt 0:00:09]} 35. Qf4 {[%emt 0:02:04]} Bd4 36. Qxd4 {[%emt 0:08:02]} Qxd4 {[%emt 0:00:43]} 1-0

[Event "XX Sants Open 2018"]
[Site "Cotxeres de Sants"]
[Date "2018.08.26"]
[Round "10"]
[White "Perez Garcia, Jose Miguel"]
[Black "Santos Ramos, Carlos"]
[Result "1-0"]
[ECO "A46"]
[WhiteElo "1910"]
[BlackElo "1825"]
[Annotator "NA RC"]
[PlyCount "67"]
[EventDate "2018.08.17"]
[EventType "swiss"]
[EventCountry "ESP"]
[SourceTitle "playchess.com"]
[Source "ChessBase"]
[SourceQuality "1"]
[TimeControl "40/5400+30:1800+30"]

{[%evp 12,63,22,16,48,32,53,48,32767,32767,32767,32767,-7,32767,32767,16,13,-17,-12,-24,-18,-44,-35,-85,-7,0,19,-58,-54,32767,32767,32767,32767,32767,32767,-18,-16,32767,32767,-120,698,839,776,869,745,936,908,1139,1156,1129,1205,1576,29985,420]} 1. d4 Nf6 2. Nf3 e6 3. g3 c5 4. Bg2 Nc6 5. O-O d5 6. c4 dxc4 7. Ne5 Nxe5 {E04: Open Catalan: 5 Nf3} (7... Bd7 8. Nxc4 cxd4 9. Bf4 Be7 10. Nd6+ Kf8 11. Nxb7 Qb6 12. Nd6 Nd5 13. Nc4 Qd8 14. Be5 Rc8 15. Nbd2 f6 16. Bd6 Be8 17. Ne4 {1-0 (33) Vidit,S (2715)-Harikrishna,P (2744) Riadh 2017}) 8. dxe5 Qxd1 9. Rxd1 {LiveBook: 54 Games} Nd5 10. Bxd5 exd5 11. Rxd5 Be6 12. Rd1 Be7 13. Nc3 O-O 14. Nd5 $146 ({Predecessor:} 14. e4 Rfd8 15. Nd5 {1-0 (51) Straub,N (2340)-David,G (2125) Dresden 1999}) 14... Bxd5 15. Rxd5 Rfd8 16. e4 f6 $1 17. f4 Kf7 (17... fxe5 $15 18. fxe5 Kf7) 18. Be3 Rac8 19. a4 ({Better is} 19. Rxd8 $11 Rxd8 20. exf6 gxf6 21. Kf2) 19... fxe5 20. fxe5 Ke6 21. Rad1 Rxd5 22. exd5+ Kxe5 23. Bf4+ Kf6 24. d6 Rd8 {[#]} 25. Kg2 $2 (25. Rf1 $1 $16 Bf8 {[#]} 26. d7 $1 {[%mdl 512]}) 25... g5 $2 (25... Kf7 $17 26. Rc1 Bxd6 27. Rxc4 b6) 26. dxe7 Rxd1 27. e8=Q gxf4 28. gxf4 Rd3 29. Qe5+ Kg6 30. Qxc5 Rd2+ 31. Kf3 Rxb2 32. Qg5+ Kf7 33. Qf5+ Kg8 34. Qe6+ 1-0

[Event "XX Sants Open 2018"]
[Site "Cotxeres de Sants"]
[Date "2018.08.26"]
[Round "10"]
[White "Vargas Drechsler, Carlos"]
[Black "Magallanes, Gustavo Javier"]
[Result "1/2-1/2"]
[ECO "B23"]
[WhiteElo "1902"]
[BlackElo "1905"]
[Annotator "NA"]
[PlyCount "103"]
[EventDate "2018.08.17"]
[EventType "swiss"]
[EventCountry "ESP"]
[SourceTitle "playchess.com"]
[Source "ChessBase"]
[SourceQuality "1"]
[TimeControl "40/5400+30:1800+30"]

1. e4 {[%emt 0:00:00]} c5 {[%emt 0:00:00]} 2. Nc3 {[%emt 0:00:15]} e6 {[%emt 0:00:00]} 3. g3 {[%emt 0:00:16]} Nc6 {[%emt 0:00:08]} 4. Bg2 {[%emt 0:00:12]} g6 {[%emt 0:04:10]} 5. d3 {[%emt 0:00:26]} Bg7 {[%emt 0:00:19]} 6. Be3 {[%emt 0:01:55]} d6 {[%emt 0:01:58]} 7. Qd2 {[%emt 0:03:08]} Nd4 {[%emt 0:02:12]} 8. Nce2 {[%emt 0:03:31]} Ne7 {[%emt 0:03:41] LiveBook: 3 Games} 9. c3 {[%emt 0:00:52]} Nxe2 {[%emt 0:05:08]} 10. Nxe2 {[%emt 0:05:50]} O-O {[%emt 0:04:59]} 11. O-O {[%emt 0:05:12]} Bd7 {[%emt 0:02:00]} 12. d4 $146 {[%emt 0:02:24] B24: Closed Sicilian: 3 g3 sidelines} ({Predecessor:} 12. Bh6 Bc6 13. Bxg7 Kxg7 14. d4 b6 15. c4 e5 16. dxe5 dxe5 17. Qc3 f6 18. f4 Qc7 19. Rad1 Rad8 20. Rxd8 Rxd8 {½-½ (54) Letay,G (2230)-Kahn,E (2370) Budapest 1997}) 12... cxd4 {[%emt 0:05:07]} 13. Bxd4 {[%emt 0:03:16]} Bc6 {[%emt 0:04:39]} 14. Rfd1 {[%emt 0:06:25]} (14. Bxg7 $16 Kxg7 15. Rfd1) 14... d5 {[%emt 0:03:49]} 15. Bxg7 {[%emt 0:02:27]} Kxg7 {[%emt 0:00:20]} 16. Nd4 {[%emt 0:01:58]} (16. c4 $16) 16... Qb6 {[%emt 0:04:55]} (16... dxe4 $11 17. Nxc6 Nxc6) 17. Nxc6 {[%emt 0:06:31]} bxc6 {[%emt 0:00:09]} 18. Qd4+ {[%emt 0:01:09]} f6 {[%emt 0:17:29]} 19. Qxb6 {[%emt 0:03:25]} axb6 {[%emt 0:00:11]} 20. exd5 {[%emt 0:02:20]} exd5 {[%emt 0:06:24]} 21. a3 {[%emt 0:00:58]} b5 $11 {[%emt 0:07:55]} 22. Re1 {[%emt 0:01:07]} Kf7 {[%emt 0:00:44]} 23. Re2 {[%emt 0:07:16]} Rfe8 {[%emt 0:01:22]} 24. Rae1 {[%emt 0:00:31]} Ng8 {[%emt 0:02:54]} 25. Rxe8 {[%emt 0:02:42]} Rxe8 {[%emt 0:00:01]} 26. Rxe8 {[%emt 0:00:14]} Kxe8 {[%emt 0:00:03]} 27. Kf1 {[%emt 0:02:10]} Kd7 {[%emt 0:04:16]} 28. Ke2 {[%emt 0:01:03]} Kd6 {[%emt 0:00:09]} 29. Kd3 {[%emt 0:03:52]} Ne7 {[%emt 0:05:04]} 30. Bf1 {[%emt 0:08:56]} Nc8 {[%emt 0:03:11]} 31. b3 {[%emt 0:01:24]} Nb6 {[%emt 0:00:59]} 32. Ke3 {[%emt 0:00:33]} Kc5 {[%emt 0:06:42]} 33. Bh3 {[%emt 0:03:44]} Kd6 {[%emt 0:00:26]} 34. f4 {[%emt 0:00:55]} c5 {[%emt 0:03:31]} 35. Bf1 {[%emt 0:04:37]} Kc6 {[%emt 0:00:52]} 36. g4 {[%emt 0:02:24]} Nd7 {[%emt 0:01:25]} 37. a4 {[%emt 0:05:10]} bxa4 {[%emt 0:00:38]} 38. bxa4 {[%emt 0:00:20]} c4 {[%emt 0:00:20]} 39. Kd4 {[%emt 0:01:54]} Nc5 {[%emt 0:00:22]} 40. Bg2 {[%emt 0:00:00]} Nb3+ {[%emt 0:00:00]} 41. Ke3 {[%emt 0:04:12]} Kc5 {[%emt 0:00:46]} 42. h4 {[%emt 0:04:50]} d4+ {[%emt 0:02:40]} 43. cxd4+ {[%emt 0:01:47]} Nxd4 {[%emt 0:00:04]} 44. a5 {[%emt 0:01:32]} c3 {[%emt 0:07:25]} 45. a6 {[%emt 0:04:07]} c2 {[%emt 0:00:22]} 46. Kd2 {[%emt 0:01:18]} Kb6 {[%emt 0:04:00]} 47. Bf1 {[%emt 0:02:08]} h6 {[%emt 0:08:30]} 48. Bd3 {[%emt 0:04:51]} f5 {[%emt 0:08:22]} 49. h5 {[%emt 0:04:56]} gxh5 {[%emt 0:00:05]} 50. gxh5 {[%emt 0:00:10]} Ne6 {[%emt 0:01:55]} 51. Bxc2 {[%emt 0:04:18]} Nxf4 {[%emt 0:00:15]} 52. Bxf5 {[%emt 0:00:25]} 1/2-1/2

[Event "XX Sants Open 2018"]
[Site "Cotxeres de Sants"]
[Date "2018.08.26"]
[Round "10"]
[White "Ruiz Gonzalez, Jorge"]
[Black "Zheng, Hong Wei"]
[Result "1-0"]
[ECO "C41"]
[WhiteElo "1888"]
[BlackElo "1876"]
[Annotator "NA"]
[PlyCount "47"]
[EventDate "2018.08.17"]
[EventType "swiss"]
[EventCountry "ESP"]
[SourceTitle "playchess.com"]
[Source "ChessBase"]
[SourceQuality "1"]
[TimeControl "40/5400+30:1800+30"]

{[%evp 8,39,84,53,72,32767,32767,23,38,5,317,322,341,194,195,196,205,190,362,218,225,197,196,193,180,189,185,207,32767,402,424,462,431,310]} 1. e4 e5 2. Nf3 d6 3. d4 Qe7 4. Nc3 c6 {LiveBook: 113 Games} 5. Be3 {C41: Philidor Defence} (5. a4 Nf6 6. Be2 h6 7. h3 Qc7 8. Be3 Be7 9. O-O O-O 10. Re1 Re8 11. Bc4 Nbd7 12. Ba2 Nf8 13. Qd2 Be6 14. d5 Bd7 15. Rad1 c5 16. Nxe5 dxe5 17. d6 Bxd6 18. Qxd6 Qxd6 19. Rxd6 Be6 20. Bxc5 Bxa2 21. Nxa2 {0-1 (72) Sanal,V (2551)-Fedoseev,V (2718) Riadh 2017}) 5... h6 6. Qd2 Nf6 7. dxe5 $146 ({Predecessor:} 7. O-O-O Nbd7 8. h3 g6 9. Kb1 Bg7 10. g4 h5 11. dxe5 dxe5 12. g5 Nh7 {½-½ (23) Mallahi,A (2300)-Kanan Azer,N (2200) Iran 1997}) 7... dxe5 8. O-O-O Qc7 $2 {[#]} (8... Nbd7 $11) 9. Nxe5 $1 Bb4 10. f3 (10. Bf4 $142 Bxc3 11. Qxc3) 10... O-O 11. Nd3 a5 12. g4 Bxg4 (12... b5 {is a better defense.} 13. h4 Nfd7) 13. fxg4 Nxe4 14. Qg2 ({Inferior is} 14. Nxe4 Bxd2+ 15. Rxd2 Na6 $11) 14... Nxc3 15. bxc3 Bxc3 16. Qg3 Qe7 17. Bc5 Qe6 18. Nf4 Qf6 19. Bxf8 Be5 20. Qa3 $18 Qxf4+ 21. Kb1 Na6 22. Bxa6 Rxa6 23. Bc5 b5 24. Rhf1 1-0

[Event "XX Sants Open 2018"]
[Site "Cotxeres de Sants"]
[Date "2018.08.26"]
[Round "10"]
[White "Vadillo, Torre Ismael"]
[Black "Garrido Sanchez, Daniel"]
[Result "1-0"]
[ECO "D37"]
[WhiteElo "1567"]
[BlackElo "1560"]
[Annotator "NA"]
[PlyCount "85"]
[EventDate "2018.08.17"]
[EventType "swiss"]
[EventCountry "ESP"]
[SourceTitle "playchess.com"]
[Source "ChessBase"]
[SourceQuality "1"]
[TimeControl "40/5400+30:1800+30"]

1. d4 d5 {[%emt 0:02:09]} 2. c4 {[%emt 0:00:00]} e6 {[%emt 0:00:06]} 3. Nc3 {[%emt 0:00:00]} Nf6 {[%emt 0:00:14]} 4. Nf3 {[%emt 0:00:00]} Nbd7 {[%emt 0:00:24]} 5. Bg5 {[%emt 0:00:37]} Be7 {[%emt 0:01:30]} 6. e3 {[%emt 0:00:31]} h6 {[%emt 0:05:11]} 7. Bh4 {[%emt 0:00:09]} b6 {[%emt 0:16:36]} 8. cxd5 {[%emt 0:25:33]} exd5 {[%emt 0:06:47]} 9. Bb5 {[%emt 0:02:43]} Bb7 {[%emt 0:00:42]} 10. Ne5 {[%emt 0:02:14]} O-O {[%emt 0:01:03]} 11. Bc6 {[%emt 0:05:36]} Rb8 {[%emt 0:15:28]} 12. Bxb7 {[%emt 0:00:14]} Rxb7 {[%emt 0:00:41]} 13. Nc6 {[%emt 0:00:08]} Qe8 {[%emt 0:00:48]} 14. Nxe7+ {[%emt 0:00:07]} Qxe7 {[%emt 0:00:16]} 15. Nxd5 {[%emt 0:00:13]} Qe4 {[%emt 0:01:36]} 16. Nxf6+ {[%emt 0:01:38]} Nxf6 {[%emt 0:00:42]} 17. Qf3 {[%emt 0:00:25]} Qxf3 {[%emt 0:08:31]} 18. gxf3 {[%emt 0:00:02]} c5 {[%emt 0:03:26]} 19. Bxf6 {[%emt 0:00:31]} gxf6 {[%emt 0:00:14]} 20. d5 {[%emt 0:00:20]} Rd8 {[%emt 0:00:33]} 21. e4 {[%emt 0:01:04]} f5 {[%emt 0:00:26]} 22. Ke2 {[%emt 0:04:37]} Kg7 {[%emt 0:03:22]} 23. Rhg1+ {[%emt 0:01:14]} Kf6 {[%emt 0:00:01]} 24. Ke3 {[%emt 0:01:06]} Re7 {[%emt 0:00:26]} 25. Rad1 {[%emt 0:00:55]} fxe4 {[%emt 0:00:21]} 26. fxe4 {[%emt 0:00:25]} Rde8 {[%emt 0:01:31]} 27. f3 {[%emt 0:04:50]} Re5 {[%emt 0:02:20]} 28. h4 {[%emt 0:08:07]} Rc8 {[%emt 0:05:13]} 29. f4 {[%emt 0:12:29]} Ree8 {[%emt 0:02:35]} 30. d6 {[%emt 0:01:35]} Red8 {[%emt 0:02:40]} 31. e5+ {[%emt 0:03:37]} Ke6 {[%emt 0:00:11]} 32. Ke4 {[%emt 0:01:30]} c4 {[%emt 0:00:34]} 33. f5+ {[%emt 0:01:34]} Kd7 {[%emt 0:02:10]} 34. Rg7 {[%emt 0:00:13]} Ke8 {[%emt 0:06:02]} 35. e6 {[%emt 0:01:25]} fxe6 {[%emt 0:03:18]} 36. fxe6 {[%emt 0:03:45]} Kf8 {[%emt 0:00:01]} 37. Rf7+ {[%emt 0:01:50]} Kg8 {[%emt 0:00:25]} 38. d7 {[%emt 0:01:15]} Rb8 {[%emt 0:01:04]} 39. Ke5 {[%emt 0:02:28]} Rb7 {[%emt 0:02:22]} 40. Kf6 {[%emt 0:00:00]} Rc7 {[%emt 0:00:00]} 41. Ke7 {[%emt 0:02:28]} Rb8 {[%emt 0:03:56]} 42. Rg1+ {[%emt 0:00:39]} Kh8 {[%emt 0:02:39]} 43. Rf8+ {[%emt 0:01:19]} 1-0

[Event "XX Sants Open 2018"]
[Site "Cotxeres de Sants"]
[Date "2018.08.26"]
[Round "10"]
[White "Cassi De La Viuda, Alex"]
[Black "Buisan Arnau, Oriol"]
[Result "1-0"]
[ECO "C68"]
[WhiteElo "1566"]
[BlackElo "1599"]
[Annotator "NA"]
[PlyCount "137"]
[EventDate "2018.08.17"]
[EventType "swiss"]
[EventCountry "ESP"]
[SourceTitle "playchess.com"]
[Source "ChessBase"]
[SourceQuality "1"]
[TimeControl "40/5400+30:1800+30"]

1. e4 e5 2. Nf3 Nc6 3. Bb5 a6 4. Bxc6 dxc6 5. d3 Bc5 6. Nbd2 Bd7 7. h3 Qf6 8. Qe2 Qe7 9. Nc4 Bd6 10. Bd2 f6 11. a3 Be6 12. Nxd6+ Qxd6 13. Bc3 Nh6 14. O-O-O O-O-O 15. d4 exd4 16. Rxd4 Qe7 17. Rhd1 Rxd4 18. Rxd4 Re8 19. Rd1 Bd5 20. Re1 Qxe4 21. Qd3 Qxd3 22. Rxe8+ Kd7 23. cxd3 Kxe8 24. Ne1 Nf7 25. Kd2 Kd7 26. Ke3 Ke6 27. Kf4 g6 28. g4 Nd6 29. g5 fxg5+ 30. Kxg5 Nf7+ 31. Kg4 h5+ 32. Kg3 Kf5 33. f4 g5 34. fxg5 Kxg5 35. Nf3+ Bxf3 36. Kxf3 Kh4 37. Kg2 Kg5 38. Kg3 c5 39. Bd2+ Kg6 40. Kf4 Kf6 41. Bc3+ Kg6 42. d4 cxd4 43. Bxd4 c6 44. h4 Nd6 45. Ke5 Nc4+ 46. Ke6 Nd2 47. Kd7 Nf3 48. Bf2 Ne5+ 49. Kc7 Nc4 50. Kxb7 Nxb2 51. Kxc6 Kf5 52. Kb7 Nc4 53. a4 Nb2 54. a5 Nc4 55. Kxa6 Kg4 56. Kb5 Nxa5 57. Kxa5 Kf3 58. Be1 Ke2 59. Bb4 Kf3 60. Be7 Kg4 61. Kb6 Kf5 62. Kc5 Ke5 63. Bg5 Ke6 64. Kd4 Kf5 65. Kd5 Kg6 66. Ke5 Kf7 67. Kf5 Kg7 68. Bf6+ Kh6 69. Bc3 1-0